[Event "NJSK 2026 Meisjes C"]
[Site "Helmond, Netherlands"]
[Date "2026.04.25"]
[Round "1.3"]
[White "Jongejan, Evienne"]
[Black "Luong, Thao"]
[Result "0-1"]
[TimeControl "90min/40moves + 30min + 30sec/move"]
[WhiteTitle "-"]
[BlackTitle "-"]
[WhiteFideId "40109798"]
[BlackFideId "1091980"]
[WhiteElo "1488"]
[BlackElo "1855"]

1. e4 {[%clk 01:30:57]} {[%emt 00:00:02]} e5 {[%clk 01:30:56]} {[%emt
00:00:05]} 2. Nf3 {[%clk 01:31:16]} {[%emt 00:00:09]} Nc6 {[%clk 01:31:20]}
{[%emt 00:00:06]} 3. d4 {[%clk 01:31:33]} {[%emt 00:00:12]} exd4 {[%clk
01:31:49]} {[%emt 00:00:03]} 4. Nxd4 {[%clk 01:31:45]} {[%emt 00:00:17]} Bb4+
{[%clk 01:32:12]} {[%emt 00:00:08]} 5. Nc3 {[%clk 01:31:50]} {[%emt 00:00:23]}
Nf6 {[%clk 01:30:09]} {[%emt 00:02:35]} 6. Nxc6 {[%clk 01:31:50]} {[%emt
00:00:29]} bxc6 {[%clk 01:30:29]} {[%emt 00:00:10]} 7. Bd3 {[%clk 01:32:03]}
{[%emt 00:00:16]} d5 {[%clk 01:30:09]} {[%emt 00:00:51]} 8. exd5 {[%clk
01:32:02]} {[%emt 00:00:32]} O-O {[%clk 01:28:30]} {[%emt 00:02:08]} 9. O-O
{[%clk 01:32:20]} {[%emt 00:00:12]} cxd5 {[%clk 01:28:27]} {[%emt 00:00:32]} 10.
Bg5 {[%clk 01:31:11]} {[%emt 00:01:40]} c6 {[%clk 01:27:28]} {[%emt 00:01:30]}
11. h3 {[%clk 01:27:56]} {[%emt 00:03:44]} Be6 {[%clk 01:24:50]} {[%emt
00:03:09]} 12. Qf3 {[%clk 01:25:49]} {[%emt 00:02:35]} Be7 {[%clk 01:24:22]}
{[%emt 00:00:59]} 13. Bxf6 {[%clk 01:22:31]} {[%emt 00:03:48]} Bxf6 {[%clk
01:23:10]} {[%emt 00:01:42]} 14. Qh5 {[%clk 01:20:45]} {[%emt 00:02:15]} g6
{[%clk 01:20:58]} {[%emt 00:02:43]} 15. Qf3 {[%clk 01:19:35]} {[%emt 00:01:40]}
Bg7 {[%clk 01:20:52]} {[%emt 00:00:36]} 16. Be2 {[%clk 01:16:45]} {[%emt
00:03:19]} f5 {[%clk 01:15:49]} {[%emt 00:05:34]} 17. Rfe1 {[%clk 01:15:25]}
{[%emt 00:01:50]} Qd6 {[%clk 01:08:00]} {[%emt 00:08:18]} 18. Rad1 {[%clk
01:07:49]} {[%emt 00:08:06]} Kh8 {[%clk 01:02:19]} {[%emt 00:06:12]} 19. Bf1
{[%clk 01:02:52]} {[%emt 00:05:28]} g5 {[%clk 00:59:31]} {[%emt 00:03:17]} 20.
Qe3 {[%clk 01:02:18]} {[%emt 00:01:04]} Rae8 {[%clk 00:49:48]} {[%emt
00:10:13]} 21. Qxa7 {[%clk 00:57:56]} {[%emt 00:04:51]} g4 {[%clk 00:45:51]}
{[%emt 00:04:27]} 22. Qe3 {[%clk 00:56:08]} {[%emt 00:02:18]} f4 {[%clk
00:40:04]} {[%emt 00:06:18]} 23. Qd2 {[%clk 00:52:59]} {[%emt 00:03:39]} Qc7
{[%clk 00:32:34]} {[%emt 00:07:59]} 24. hxg4 {[%clk 00:48:25]} {[%emt
00:05:05]} Bxg4 {[%clk 00:31:10]} {[%emt 00:01:53]} 25. Rc1 {[%clk 00:47:50]}
{[%emt 00:01:05]} Be5 {[%clk 00:27:01]} {[%emt 00:04:39]} 26. Be2 {[%clk
00:46:03]} {[%emt 00:02:17]} f3 {[%clk 00:26:23]} {[%emt 00:01:10]} 27. Bf1
{[%clk 00:45:24]} {[%emt 00:01:08]} fxg2 {[%clk 00:23:43]} {[%emt 00:03:10]} 28.
Bxg2 {[%clk 00:45:41]} {[%emt 00:00:13]} Bf3 {[%clk 00:22:58]} {[%emt
00:01:15]} 29. Bxf3 {[%clk 00:41:15]} {[%emt 00:04:56]} Rxf3 {[%clk 00:23:06]}
{[%emt 00:00:21]} 30. Qe2 {[%clk 00:39:54]} {[%emt 00:01:52]} Bh2+ {[%clk
00:23:02]} {[%emt 00:00:33]} 31. Kf1 {[%clk 00:40:14]} {[%emt 00:00:11]} Rxe2
{[%clk 00:23:18]} {[%emt 00:00:14]} 32. Nxe2 {[%clk 00:40:29]} {[%emt
00:00:14]} Qf7 {[%clk 00:23:26]} {[%emt 00:00:22]} 33. Nf4 {[%clk 00:40:43]}
{[%emt 00:00:17]} Rxf4 {[%clk 00:23:36]} {[%emt 00:00:20]} 34. Ke2 {[%clk
00:41:04]} {[%emt 00:00:08]} Rxf2+ {[%clk 00:23:47]} {[%emt 00:00:20]} 35. Kd1
{[%emt 00:00:23]} Qf3+ {[%clk 00:24:06]} 36. Re2 {[%clk 00:41:43]} {[%emt
00:00:09]} Qxe2# {[%clk 00:24:00]} {[%emt 00:00:05]} 0-1

[Event "NJSK 2026 Meisjes C"]
[Site "Helmond, Netherlands"]
[Date "2026.04.25"]
[Round "1.4"]
[White "Ngangbam, Malem"]
[Black "Barbier, Sarah"]
[Result "1-0"]
[TimeControl "90min/40moves + 30min + 30sec/move"]
[WhiteTitle "-"]
[BlackTitle "-"]
[WhiteFideId "40102343"]
[BlackFideId "1095420"]
[WhiteElo "1600"]
[BlackElo "1487"]

1. e4 {[%clk 01:30:58]} {[%emt 00:00:01]} e5 {[%clk 01:30:56]} {[%emt
00:00:05]} 2. Nf3 {[%clk 01:31:23]} {[%emt 00:00:05]} Nc6 {[%clk 01:31:12]}
{[%emt 00:00:13]} 3. Bc4 {[%clk 01:31:47]} {[%emt 00:00:05]} Bc5 {[%clk
01:31:18]} {[%emt 00:00:26]} 4. c3 {[%clk 01:32:11]} {[%emt 00:00:05]} Nge7
{[%clk 01:31:05]} {[%emt 00:00:44]} 5. d4 {[%clk 01:32:24]} {[%emt 00:00:18]}
exd4 {[%clk 01:31:20]} {[%emt 00:00:15]} 6. cxd4 {[%clk 01:32:34]} {[%emt
00:00:19]} Bb4+ {[%clk 01:31:32]} {[%emt 00:00:18]} 7. Nc3 {[%clk 01:32:31]}
{[%emt 00:00:34]} d5 {[%clk 01:31:23]} {[%emt 00:00:39]} 8. exd5 {[%clk
01:28:39]} {[%emt 00:04:22]} Nxd5 {[%clk 01:31:37]} {[%emt 00:00:16]} 9. Bd2
{[%clk 01:28:43]} {[%emt 00:00:25]} Nxc3 {[%clk 01:31:31]} {[%emt 00:00:36]} 10.
bxc3 {[%clk 01:28:55]} {[%emt 00:00:17]} Bd6 {[%clk 01:31:44]} {[%emt
00:00:17]} 11. O-O {[%clk 01:28:31]} {[%emt 00:00:55]} Bg4 {[%clk 01:31:06]}
{[%emt 00:01:08]} 12. Re1+ {[%clk 01:27:13]} {[%emt 00:01:48]} Be7 {[%clk
01:31:05]} {[%emt 00:00:30]} 13. Bf4 {[%clk 01:24:18]} {[%emt 00:03:25]} O-O
{[%clk 01:30:31]} {[%emt 00:01:04]} 14. Qd3 {[%clk 01:24:07]} {[%emt 00:00:42]}
Na5 {[%clk 01:30:00]} {[%emt 00:01:02]} 15. Ne5 {[%clk 01:23:02]} {[%emt
00:01:33]} Nxc4 {[%clk 01:28:43]} {[%emt 00:01:48]} 16. Nxg4 {[%clk 01:22:01]}
{[%emt 00:01:31]} Na3 {[%clk 01:25:04]} {[%emt 00:04:07]} 17. Re3 {[%clk
01:17:43]} {[%emt 00:04:50]} c5 {[%clk 01:22:37]} {[%emt 00:02:57]} 18. Rh3
{[%clk 01:15:58]} {[%emt 00:02:14]} f5 {[%clk 01:22:36]} {[%emt 00:00:32]} 19.
Ne5 {[%clk 01:13:11]} {[%emt 00:03:14]} cxd4 {[%clk 01:21:39]} {[%emt
00:01:30]} 20. c4 {[%clk 01:09:36]} {[%emt 00:04:06]} Qb6 {[%clk 01:16:57]}
{[%emt 00:05:08]} 21. Nd7 {[%clk 01:04:02]} {[%emt 00:06:06]} Qb2 {[%clk
01:16:05]} {[%emt 00:01:22]} 22. Rd1 {[%clk 00:55:53]} {[%emt 00:08:39]} Rfe8
{[%clk 01:09:58]} {[%emt 00:06:38]} 23. Qxf5 {[%clk 00:47:13]} {[%emt
00:09:09]} g6 {[%clk 01:07:47]} {[%emt 00:02:41]} 24. Qe6+ {[%clk 00:46:22]}
{[%emt 00:01:22]} Kg7 {[%clk 01:06:26]} {[%emt 00:01:52]} 25. Be5+ {[%clk
00:46:34]} {[%emt 00:00:18]} Bf6 {[%clk 01:06:47]} {[%emt 00:00:09]} 26. Bxf6#
{[%emt 00:00:15]} 1-0

[Event "NJSK 2026 Meisjes C"]
[Site "Helmond, Netherlands"]
[Date "2026.04.25"]
[Round "1.6"]
[White "Panzar, Emilia-Andreea"]
[Black "Urban, Hannah"]
[Result "1-0"]
[TimeControl "90min/40moves + 30min + 30sec/move"]
[WhiteTitle "-"]
[BlackTitle "-"]
[WhiteFideId "42210852"]
[BlackFideId "40109364"]
[WhiteElo "1585"]
[BlackElo "1438"]

1. d4 {[%clk 01:30:58]} {[%emt 00:00:02]} d5 {[%clk 01:30:49]} {[%emt
00:00:11]} 2. Nf3 {[%clk 01:31:20]} {[%emt 00:00:09]} Bg4 {[%clk 01:30:54]}
{[%emt 00:00:25]} 3. Ne5 {[%clk 01:31:24]} {[%emt 00:00:27]} Be6 {[%clk
01:30:58]} {[%emt 00:00:24]} 4. Bf4 {[%clk 01:31:13]} {[%emt 00:00:42]} Nd7
{[%clk 01:30:44]} {[%emt 00:00:43]} 5. Nf3 {[%clk 01:30:31]} {[%emt 00:01:13]}
g6 {[%clk 01:30:27]} {[%emt 00:00:47]} 6. e3 {[%clk 01:29:48]} {[%emt
00:01:14]} Bg7 {[%clk 01:28:38]} {[%emt 00:02:18]} 7. Nbd2 {[%clk 01:27:32]}
{[%emt 00:02:47]} Ngf6 {[%clk 01:28:21]} {[%emt 00:00:47]} 8. h3 {[%clk
01:26:54]} {[%emt 00:01:08]} a6 {[%clk 01:24:54]} {[%emt 00:03:57]} 9. Ng5
{[%clk 01:25:31]} {[%emt 00:01:52]} Nb6 {[%clk 01:21:25]} {[%emt 00:04:00]} 10.
Nxe6 {[%clk 01:25:28]} {[%emt 00:00:33]} fxe6 {[%clk 01:21:24]} {[%emt
00:00:30]} 11. c3 {[%clk 01:18:38]} {[%emt 00:07:20]} O-O {[%clk 01:20:28]}
{[%emt 00:01:25]} 12. Bd3 {[%clk 01:16:46]} {[%emt 00:02:23]} Rc8 {[%clk
01:16:45]} {[%emt 00:04:13]} 13. Nb3 {[%clk 01:13:32]} {[%emt 00:03:44]} Nbd7
{[%clk 01:14:36]} {[%emt 00:02:39]} 14. Na5 {[%clk 01:07:07]} {[%emt 00:06:55]}
Rb8 {[%clk 01:13:55]} {[%emt 00:01:12]} 15. Qe2 {[%clk 00:56:16]} {[%emt
00:11:21]} Ne8 {[%clk 01:01:13]} {[%emt 00:13:11]} 16. Bxa6 {[%clk 00:53:00]}
{[%emt 00:03:47]} Rf7 {[%clk 00:59:57]} {[%emt 00:01:45]} 17. Nxb7 {[%clk
00:51:57]} {[%emt 00:01:33]} Rxb7 {[%clk 00:59:12]} {[%emt 00:01:16]} 18. Bxb7
{[%clk 00:52:16]} {[%emt 00:00:11]} Nd6 {[%clk 00:58:43]} {[%emt 00:00:58]} 19.
Bc6 {[%clk 00:47:54]} {[%emt 00:04:52]} Rf8 {[%clk 00:57:34]} {[%emt 00:01:40]}
20. Bxd7 {[%clk 00:47:09]} {[%emt 00:01:14]} Qxd7 {[%clk 00:57:12]} {[%emt
00:00:52]} 21. Bxd6 {[%clk 00:47:10]} {[%emt 00:00:29]} exd6 {[%clk 00:57:19]}
{[%emt 00:00:23]} 22. O-O {[%clk 00:45:32]} {[%emt 00:02:08]} c5 {[%clk
00:56:24]} {[%emt 00:01:26]} 23. f4 {[%clk 00:43:08]} {[%emt 00:02:53]} Qe7
{[%clk 00:55:41]} {[%emt 00:01:13]} 24. a4 {[%clk 00:41:25]} {[%emt 00:02:14]}
c4 {[%clk 00:55:57]} {[%emt 00:00:13]} 25. g3 {[%clk 00:41:12]} {[%emt
00:00:43]} Ra8 {[%clk 00:55:57]} {[%emt 00:00:30]} 26. e4 {[%clk 00:40:05]}
{[%emt 00:01:37]} Qb7 {[%clk 00:55:50]} {[%emt 00:00:37]} 27. exd5 {[%clk
00:37:58]} {[%emt 00:02:37]} Qxd5 {[%clk 00:54:20]} {[%emt 00:02:01]} 28. Qf3
{[%clk 00:38:14]} {[%emt 00:00:13]} Qa5 {[%clk 00:54:07]} {[%emt 00:00:43]} 29.
Qc6 {[%clk 00:37:36]} {[%emt 00:01:07]} Qd5 {[%clk 00:54:01]} {[%emt 00:00:38]}
30. Qxd5 {[%clk 00:37:31]} {[%emt 00:00:34]} exd5 {[%clk 00:54:22]} {[%emt
00:00:09]} 31. Rfb1 {[%clk 00:36:25]} {[%emt 00:01:37]} Kf7 {[%clk 00:53:50]}
{[%emt 00:01:01]} 32. b4 {[%clk 00:36:07]} {[%emt 00:00:48]} cxb3 {[%clk
00:54:10]} {[%emt 00:00:11]} 33. Rxb3 {[%clk 00:36:23]} {[%emt 00:00:14]} Bf6
{[%clk 00:54:20]} {[%emt 00:00:20]} 34. Rb7+ {[%clk 00:36:07]} {[%emt
00:00:45]} Be7 {[%clk 00:54:34]} {[%emt 00:00:16]} 35. a5 {[%clk 00:35:28]}
{[%emt 00:01:10]} Kf6 {[%clk 00:53:26]} {[%emt 00:01:38]} 36. a6 {[%clk
00:35:08]} {[%emt 00:00:50]} Bd8 {[%clk 00:53:06]} {[%emt 00:00:50]} 37. a7
{[%clk 00:35:24]} {[%emt 00:00:13]} Be7 {[%clk 00:52:49]} {[%emt 00:00:47]} 38.
Rb8 {[%clk 00:35:37]} {[%emt 00:00:18]} Rxa7 {[%clk 00:52:55]} {[%emt
00:00:24]} 39. Rxa7 {[%clk 00:35:53]} {[%emt 00:00:13]} h6 {[%clk 00:52:57]}
{[%emt 00:00:28]} 40. Re8 {[%clk 00:35:53]} {[%emt 00:00:30]} g5 {[%clk
00:53:10]} {[%emt 00:00:17]} 41. Raxe7 {[%clk 00:35:53]} {[%emt 00:00:30]} gxf4
{[%clk 00:53:06]} {[%emt 00:00:35]} 42. gxf4 {[%clk 00:36:09]} {[%emt
00:00:13]} h5 {[%clk 00:53:27]} {[%emt 00:00:10]} 43. Re6+ {[%clk 00:35:24]}
{[%emt 00:01:15]} Kf7 {[%clk 00:53:33]} {[%emt 00:00:24]} 44. f5 {[%clk
00:35:32]} {[%emt 00:00:21]} h4 {[%clk 00:53:36]} {[%emt 00:00:27]} 45. R8e7+
{[%clk 00:35:14]} {[%emt 00:00:48]} Kf8 {[%clk 00:53:38]} {[%emt 00:00:28]} 46.
Ra7 {[%clk 00:35:21]} {[%emt 00:00:23]} Kg8 {[%clk 00:53:35]} {[%emt 00:00:33]}
47. Re8# {[%clk 00:35:40]} {[%emt 00:00:11]} 1-0

[Event "NJSK 2026 Meisjes C"]
[Site "Helmond, Netherlands"]
[Date "2026.04.26"]
[Round "2.1"]
[White "Elangkumaran, Anumitra"]
[Black "De Koning, Mila"]
[Result "1-0"]
[TimeControl "90min/40moves + 30min + 30sec/move"]
[WhiteTitle "-"]
[BlackTitle "-"]
[WhiteFideId "40109070"]
[BlackFideId "40108694"]
[WhiteElo "1768"]
[BlackElo "1638"]

1. e4 {[%clk 01:30:58]} {[%emt 00:00:03]} e6 {[%clk 01:30:56]} {[%emt
00:00:03]} 2. d4 {[%clk 01:31:21]} {[%emt 00:00:07]} d5 {[%clk 01:31:20]}
{[%emt 00:00:07]} 3. Nc3 {[%clk 01:31:36]} {[%emt 00:00:14]} Nf6 {[%clk
01:31:32]} {[%emt 00:00:19]} 4. exd5 {[%clk 01:31:30]} {[%emt 00:00:35]} exd5
{[%clk 01:31:14]} {[%emt 00:00:47]} 5. Bg5 {[%clk 01:31:17]} {[%emt 00:00:44]}
c6 {[%clk 01:29:25]} {[%emt 00:02:20]} 6. Qd2 {[%clk 01:27:14]} {[%emt
00:04:32]} Be7 {[%clk 01:23:30]} {[%emt 00:06:24]} 7. O-O-O {[%clk 01:25:54]}
{[%emt 00:01:51]} a5 {[%clk 01:02:30]} {[%emt 00:21:30]} 8. Re1 {[%clk
01:21:25]} {[%emt 00:04:59]} O-O {[%clk 00:46:35]} {[%emt 00:16:24]} 9. Bd3
{[%clk 01:15:38]} {[%emt 00:06:17]} Re8 {[%clk 00:39:56]} {[%emt 00:07:09]} 10.
Nf3 {[%clk 01:06:37]} {[%emt 00:09:32]} b5 {[%clk 00:36:46]} {[%emt 00:03:39]}
11. Qf4 {[%clk 00:49:55]} {[%emt 00:17:13]} Be6 {[%clk 00:21:51]} {[%emt
00:15:25]} 12. Re3 {[%clk 00:24:03]} {[%emt 00:26:22]} h6 {[%clk 00:12:38]}
{[%emt 00:09:43]} 13. Bxf6 {[%clk 00:20:18]} {[%emt 00:04:15]} Bxf6 {[%clk
00:12:43]} {[%emt 00:00:25]} 14. h4 {[%clk 00:19:03]} {[%emt 00:01:45]} Na6
{[%clk 00:10:14]} {[%emt 00:02:59]} 15. Bf5 {[%clk 00:12:11]} {[%emt 00:07:22]}
Qd7 {[%clk 00:07:20]} {[%emt 00:03:22]} 16. Bxe6 {[%clk 00:09:16]} {[%emt
00:03:26]} Rxe6 {[%clk 00:06:58]} {[%emt 00:00:54]} 17. Rxe6 {[%clk 00:09:03]}
{[%emt 00:00:42]} Qxe6 {[%clk 00:07:12]} {[%emt 00:00:16]} 18. Re1 {[%clk
00:09:03]} {[%emt 00:00:30]} Qd7 {[%clk 00:06:52]} {[%emt 00:00:50]} 19. g4
{[%clk 00:08:56]} {[%emt 00:00:37]} Qc7 {[%clk 00:05:47]} {[%emt 00:01:35]} 20.
Qe3 {[%clk 00:07:51]} {[%emt 00:01:35]} Rf8 {[%clk 00:03:33]} {[%emt 00:02:43]}
21. g5 {[%clk 00:06:56]} {[%emt 00:01:26]} hxg5 {[%clk 00:03:40]} {[%emt
00:00:23]} 22. hxg5 {[%clk 00:05:07]} {[%emt 00:02:19]} Bd8 {[%clk 00:03:55]}
{[%emt 00:00:15]} 23. Ne5 {[%clk 00:03:07]} {[%emt 00:02:30]} Re8 {[%clk
00:02:27]} {[%emt 00:01:57]} 24. Rh1 {[%clk 00:02:08]} {[%emt 00:01:29]} f6
{[%clk 00:02:01]} {[%emt 00:00:57]} 25. gxf6 {[%clk 00:01:13]} {[%emt
00:01:25]} Bxf6 {[%clk 00:01:44]} {[%emt 00:00:47]} 26. f4 {[%clk 00:00:45]}
{[%emt 00:00:58]} Bxe5 {[%clk 00:01:07]} {[%emt 00:01:07]} 27. fxe5 {[%clk
00:01:04]} {[%emt 00:00:11]} b4 {[%clk 00:00:59]} {[%emt 00:00:38]} 28. Na4
{[%clk 00:00:37]} {[%emt 00:00:57]} Nb8 {[%clk 00:00:41]} {[%emt 00:00:48]} 29.
Qh3 {[%clk 00:00:58]} {[%emt 00:00:08]} Kf8 {[%clk 00:00:38]} {[%emt 00:00:33]}
30. Qh8+ {[%clk 00:01:04]} {[%emt 00:00:24]} Ke7 {[%clk 00:00:56]} {[%emt
00:00:11]} 31. Qxg7+ {[%clk 00:01:12]} {[%emt 00:00:23]} Kd8 {[%clk 00:01:14]}
{[%emt 00:00:12]} 32. Rh7 {[%clk 00:00:52]} {[%emt 00:00:51]} Qxg7 {[%clk
00:01:15]} {[%emt 00:00:29]} 33. Rxg7 {[%clk 00:01:20]} {[%emt 00:00:02]} Re7
{[%clk 00:01:20]} {[%emt 00:00:25]} 34. Rxe7 {[%clk 00:01:00]} {[%emt
00:00:49]} Kxe7 {[%clk 00:01:48]} {[%emt 00:00:03]} 35. Nc5 {[%clk 00:01:17]}
{[%emt 00:00:13]} Nd7 {[%clk 00:01:24]} {[%emt 00:00:53]} 36. Nb7 {[%clk
00:01:10]} {[%emt 00:00:38]} a4 {[%clk 00:01:33]} {[%emt 00:00:21]} 37. c3
{[%clk 00:01:27]} {[%emt 00:00:13]} bxc3 {[%clk 00:01:27]} {[%emt 00:00:36]} 38.
bxc3 {[%clk 00:01:43]} {[%emt 00:00:14]} a3 {[%clk 00:01:06]} {[%emt 00:00:51]}
39. Kc2 {[%clk 00:01:46]} {[%emt 00:00:28]} Nb6 {[%clk 00:00:54]} {[%emt
00:00:40]} 40. Na5 {[%clk 00:02:02]} {[%emt 00:00:14]} Kd7 {[%clk 00:00:58]}
{[%emt 00:00:27]} 41. Kb3 {[%clk 00:02:17]} {[%emt 00:00:14]} Nc8 {[%clk
00:00:56]} {[%emt 00:00:32]} 42. Kxa3 {[%clk 00:02:25]} {[%emt 00:00:23]} Ne7
{[%clk 00:01:04]} {[%emt 00:00:22]} 43. Kb4 {[%clk 00:02:23]} {[%emt 00:00:31]}
Nf5 {[%clk 00:01:17]} {[%emt 00:00:17]} 44. Kc5 {[%clk 00:00:41]} {[%emt
00:02:13]} Ng3 {[%clk 00:00:48]} {[%emt 00:00:58]} 45. Nxc6 {[%clk 00:29:27]}
{[%emt 00:01:44]} Ne2 {[%clk 00:31:12]} {[%emt 00:00:07]} 46. Kxd5 {[%clk
00:29:28]} {[%emt 00:00:29]} Nxc3+ {[%clk 00:31:30]} {[%emt 00:00:11]} 47. Kc5
{[%clk 00:29:34]} {[%emt 00:00:24]} Nxa2 {[%clk 00:31:48]} {[%emt 00:00:13]} 48.
d5 {[%clk 00:29:37]} {[%emt 00:00:27]} Nc3 {[%clk 00:32:01]} {[%emt 00:00:16]}
49. e6+ {[%clk 00:29:23]} {[%emt 00:00:44]} Ke8 {[%clk 00:32:15]} {[%emt
00:00:16]} 50. d6 {[%clk 00:26:44]} {[%emt 00:03:09]} Ne4+ {[%clk 00:30:50]}
{[%emt 00:01:55]} 51. Kd5 {[%clk 00:26:58]} {[%emt 00:00:16]} Nf6+ {[%clk
00:29:45]} {[%emt 00:01:35]} 52. Kd4 {[%clk 00:25:17]} {[%emt 00:02:10]} Nd7
{[%clk 00:29:17]} {[%emt 00:01:00]} 53. exd7+ {[%clk 00:25:16]} {[%emt
00:00:31]} Kxd7 {[%clk 00:29:38]} {[%emt 00:00:09]} 54. Kd5 {[%clk 00:25:18]}
{[%emt 00:00:28]} Ke8 {[%clk 00:29:21]} {[%emt 00:00:46]} 55. Ke6 {[%clk
00:25:36]} {[%emt 00:00:13]} Kf8 {[%clk 00:29:46]} {[%emt 00:00:04]} 56. d7
{[%clk 00:25:57]} {[%emt 00:00:10]} Kg7 {[%clk 00:30:12]} {[%emt 00:00:03]} 57.
d8=Q {[%clk 00:26:20]} {[%emt 00:00:07]} Kg6 {[%clk 00:30:21]} {[%emt
00:00:21]} 58. Ne5 {[%clk 00:26:29]} {[%emt 00:00:21]} Kh7 {[%clk 00:30:35]}
{[%emt 00:00:49]} 59. Qg5 {[%clk 00:26:57]} {[%emt 00:00:29]} Kh8 {[%clk
00:30:56]} {[%emt 00:00:09]} 60. Kf7 {[%clk 00:27:16]} {[%emt 00:00:11]} Kh7
{[%clk 00:31:22]} {[%emt 00:00:05]} 61. Qh5 {[%clk 00:27:41]} {[%emt 00:00:05]}
1-0